[Event "Early-Titled-Tuesday-Blitz-May-28-2024"]
[Site "Chess.com"]
[Date "2024.05.28"]
[Round "4"]
[White "Wizard_97"]
[Black "Cheer_Down"]
[Result "1-0"]
[WhiteElo "2722"]
[BlackElo "2494"]
[TimeControl "180+1"]
[EndTime "8:40:12 PDT"]
[Termination "Wizard_97 won by resignation"]

1. d4 {[%clk 0:02:59.9]} 1... Nf6 {[%clk 0:02:58.5]} 2. Nc3 {[%clk 0:03:00]}
2... e6 {[%clk 0:02:57.1]} 3. Bf4 {[%clk 0:03:00.1]} 3... d5 {[%clk 0:02:45.7]}
4. a3 {[%clk 0:03:00.6]} 4... a6 {[%clk 0:02:45.4]} 5. e3 {[%clk 0:02:59.5]}
5... c5 {[%clk 0:02:45.7]} 6. Nf3 {[%clk 0:02:56.7]} 6... Nc6 {[%clk 0:02:45.5]}
7. Be2 {[%clk 0:02:55.4]} 7... cxd4 {[%clk 0:02:44.6]} 8. exd4 {[%clk
0:02:55.1]} 8... Be7 {[%clk 0:02:44.8]} 9. O-O {[%clk 0:02:55.6]} 9... O-O
{[%clk 0:02:44.5]} 10. Ne5 {[%clk 0:02:55.6]} 10... Bd7 {[%clk 0:02:40.6]} 11.
Qd2 {[%clk 0:02:54.9]} 11... b5 {[%clk 0:02:40.1]} 12. Rad1 {[%clk 0:02:55.3]}
12... Rc8 {[%clk 0:02:39.4]} 13. Rfe1 {[%clk 0:02:55.5]} 13... Na5 {[%clk
0:02:39.2]} 14. Qe3 {[%clk 0:02:47.4]} 14... Nc4 {[%clk 0:02:38.9]} 15. Bxc4
{[%clk 0:02:47.6]} 15... bxc4 {[%clk 0:02:32.4]} 16. Qf3 {[%clk 0:02:48.2]}
16... Bc6 {[%clk 0:02:30]} 17. Ne2 {[%clk 0:02:45.6]} 17... Ne4 {[%clk
0:02:28.2]} 18. Ng3 {[%clk 0:02:43.5]} 18... Bb7 {[%clk 0:02:21.9]} 19. c3
{[%clk 0:02:42.5]} 19... f6 {[%clk 0:02:18.1]} 20. Ng4 {[%clk 0:02:42.6]} 20...
Bd6 {[%clk 0:02:09.9]} 21. Nxe4 {[%clk 0:02:34.9]} 21... dxe4 {[%clk 0:02:09.3]}
22. Qg3 {[%clk 0:02:35]} 22... Bxf4 {[%clk 0:02:07.3]} 23. Qxf4 {[%clk
0:02:35.9]} 23... Bd5 {[%clk 0:02:05.4]} 24. Ne3 {[%clk 0:02:28.6]} 24... Qc7
{[%clk 0:02:01.1]} 25. Qh4 {[%clk 0:02:14.9]} 25... f5 {[%clk 0:01:56.3]} 26.
Rd2 {[%clk 0:02:08.7]} 26... Rb8 {[%clk 0:01:50.6]} 27. Qg5 {[%clk 0:01:45.7]}
27... h6 {[%clk 0:01:44.3]} 28. Qh4 {[%clk 0:01:40.4]} 28... Rb6 {[%clk
0:01:43.3]} 29. g3 {[%clk 0:01:05.7]} 29... Kh7 {[%clk 0:01:40.1]} 30. Ng2
{[%clk 0:00:58.9]} 30... g5 {[%clk 0:01:39.2]} 31. Qh5 {[%clk 0:00:59.1]} 31...
Qf7 {[%clk 0:01:33.3]} 32. Qxf7+ {[%clk 0:00:55.3]} 32... Rxf7 {[%clk
0:01:34.2]} 33. Ne3 {[%clk 0:00:49.7]} 33... Rfb7 {[%clk 0:01:33.4]} 34. Nd1
{[%clk 0:00:42.1]} 34... Kg6 {[%clk 0:01:32.1]} 35. Ree2 {[%clk 0:00:30.3]}
35... Kf6 {[%clk 0:01:31.9]} 36. Rc2 {[%clk 0:00:27.9]} 36... Bc6 {[%clk
0:01:29.1]} 37. Ne3 {[%clk 0:00:26.2]} 37... Bd5 {[%clk 0:01:29.4]} 38. Kf1
{[%clk 0:00:21.3]} 38... Rg7 {[%clk 0:01:23.9]} 39. Ke1 {[%clk 0:00:20.4]} 39...
h5 {[%clk 0:01:23.3]} 40. Ng2 {[%clk 0:00:18.7]} 40... f4 {[%clk 0:01:04.1]} 41.
gxf4 {[%clk 0:00:18.4]} 41... gxf4 {[%clk 0:01:03]} 42. Nxf4 {[%clk 0:00:18.7]}
42... Rg1+ {[%clk 0:01:03.6]} 43. Kd2 {[%clk 0:00:19.4]} 43... Rb1 {[%clk
0:01:01.9]} 44. Ke3 {[%clk 0:00:19.1]} 44... Rh1 {[%clk 0:00:59.1]} 45. Nxh5+
{[%clk 0:00:19]} 45... Ke7 {[%clk 0:00:55.6]} 46. Nf4 {[%clk 0:00:13.6]} 46...
Rxh2 {[%clk 0:00:55.4]} 47. Re1 {[%clk 0:00:14.2]} 47... Rb8 {[%clk 0:00:44.4]}
48. Rg1 {[%clk 0:00:14.5]} 48... Kd6 {[%clk 0:00:42.9]} 49. Rg6 {[%clk 0:00:12]}
49... Rf8 {[%clk 0:00:39.4]} 50. Nxd5 {[%clk 0:00:10.9]} 50... Rf3+ {[%clk
0:00:37.3]} 51. Kxe4 {[%clk 0:00:10.9]} 51... Rfxf2 {[%clk 0:00:29]} 52. Rxf2
{[%clk 0:00:11.8]} 52... Rxf2 {[%clk 0:00:29.3]} 53. Ne3 {[%clk 0:00:12.4]}
53... Rxb2 {[%clk 0:00:29.4]} 54. Nxc4+ {[%clk 0:00:13]} 54... Kc6 {[%clk
0:00:29.9]} 55. Nxb2 {[%clk 0:00:13.3]} 1-0

[Event "Early-Titled-Tuesday-Blitz-May-28-2024"]
[Site "Chess.com"]
[Date "2024.05.28"]
[Round "4"]
[White "BogdanDeac"]
[Black "Yaacovn"]
[Result "0-1"]
[WhiteElo "3117"]
[BlackElo "2874"]
[TimeControl "180+1"]
[EndTime "8:40:13 PDT"]
[Termination "Yaacovn won by resignation"]

1. d4 {[%clk 0:03:00.9]} 1... Nf6 {[%clk 0:02:59.5]} 2. c4 {[%clk 0:02:59.7]}
2... e5 {[%clk 0:02:59]} 3. dxe5 {[%clk 0:02:56]} 3... Ne4 {[%clk 0:02:59.2]} 4.
Nd2 {[%clk 0:02:18.7]} 4... Bb4 {[%clk 0:02:58.3]} 5. a3 {[%clk 0:02:09]} 5...
Nxd2 {[%clk 0:02:54.8]} 6. Bxd2 {[%clk 0:02:07.8]} 6... Bxd2+ {[%clk 0:02:54.6]}
7. Qxd2 {[%clk 0:02:07.9]} 7... O-O {[%clk 0:02:54.1]} 8. f4 {[%clk 0:01:58.1]}
8... Nc6 {[%clk 0:02:52.4]} 9. Nf3 {[%clk 0:01:56.6]} 9... Qe7 {[%clk
0:02:52.3]} 10. e3 {[%clk 0:01:55]} 10... Rd8 {[%clk 0:02:52.2]} 11. Be2 {[%clk
0:01:41.4]} 11... d6 {[%clk 0:02:51.1]} 12. exd6 {[%clk 0:01:41.8]} 12... Rxd6
{[%clk 0:02:51.5]} 13. Qc3 {[%clk 0:01:42.3]} 13... Bf5 {[%clk 0:02:49.4]} 14.
Kf2 {[%clk 0:01:30]} 14... Re8 {[%clk 0:02:45.6]} 15. Rhe1 {[%clk 0:01:27.7]}
15... Re6 {[%clk 0:01:58.3]} 16. Bf1 {[%clk 0:01:26.2]} 16... Bg4 {[%clk
0:01:34.9]} 17. Ng5 {[%clk 0:01:09.9]} 17... Rd6 {[%clk 0:01:22.7]} 18. Be2
{[%clk 0:00:30.4]} 18... h6 {[%clk 0:00:57.8]} 19. Bxg4 {[%clk 0:00:28.1]} 19...
hxg5 {[%clk 0:00:58]} 20. Kg1 {[%clk 0:00:15.1]} 20... Red8 {[%clk 0:00:54.4]}
21. Rad1 {[%clk 0:00:10.3]} 21... g6 {[%clk 0:00:36.6]} 22. Bf3 {[%clk 0:00:07]}
22... gxf4 {[%clk 0:00:33.7]} 23. exf4 {[%clk 0:00:05.5]} 23... Rxd1 {[%clk
0:00:33.9]} 24. Bxd1 {[%clk 0:00:03]} 24... Qc5+ {[%clk 0:00:30.6]} 25. Kf1
{[%clk 0:00:03.2]} 25... Nd4 {[%clk 0:00:27.9]} 26. g3 {[%clk 0:00:03]} 26...
Qc6 {[%clk 0:00:27.3]} 27. Kf2 {[%clk 0:00:03]} 27... a5 {[%clk 0:00:24.7]} 28.
b4 {[%clk 0:00:02.6]} 28... axb4 {[%clk 0:00:20.7]} 29. axb4 {[%clk 0:00:03.5]}
29... Qd7 {[%clk 0:00:20.3]} 30. Bf3 {[%clk 0:00:02.2]} 30... Qh3 {[%clk
0:00:10.3]} 31. Bg2 {[%clk 0:00:02.3]} 31... Qf5 {[%clk 0:00:08.9]} 32. Qd2
{[%clk 0:00:02.1]} 32... c5 {[%clk 0:00:08.8]} 33. bxc5 {[%clk 0:00:01.8]} 33...
Qxc5 {[%clk 0:00:09.7]} 34. Kf1 {[%clk 0:00:01.6]} 34... Qxc4+ {[%clk
0:00:09.6]} 35. Kf2 {[%clk 0:00:02.1]} 35... Qc5 {[%clk 0:00:09.4]} 36. Kf1
{[%clk 0:00:02.6]} 36... b5 {[%clk 0:00:09.2]} 37. Qd3 {[%clk 0:00:02.4]} 37...
b4 {[%clk 0:00:08.8]} 38. Re5 {[%clk 0:00:02.9]} 38... Qb6 {[%clk 0:00:08.4]}
39. Rd5 {[%clk 0:00:02.7]} 39... Rxd5 {[%clk 0:00:07.4]} 40. Bxd5 {[%clk
0:00:03.6]} 40... Kg7 {[%clk 0:00:07.7]} 41. Qc4 {[%clk 0:00:03.4]} 41... b3
{[%clk 0:00:06.3]} 42. Be4 {[%clk 0:00:03.7]} 42... b2 {[%clk 0:00:06.3]} 43.
Bb1 {[%clk 0:00:04.3]} 43... Qd6 {[%clk 0:00:04.6]} 44. Qc3 {[%clk 0:00:04.2]}
44... Qb6 {[%clk 0:00:04.3]} 45. Ke1 {[%clk 0:00:04.4]} 45... Kg8 {[%clk
0:00:03.9]} 46. Kd2 {[%clk 0:00:04.5]} 46... Qd6 {[%clk 0:00:03.8]} 47. Ke1
{[%clk 0:00:03.7]} 47... Qe7+ {[%clk 0:00:03.4]} 48. Kf2 {[%clk 0:00:01.7]}
48... Qe2+ {[%clk 0:00:03.4]} 49. Kg1 {[%clk 0:00:01.8]} 49... Nf3+ {[%clk
0:00:04]} 0-1

[Event "Early-Titled-Tuesday-Blitz-May-28-2024"]
[Site "Chess.com"]
[Date "2024.05.28"]
[Round "4"]
[White "David_George21"]
[Black "Susal_De_Silva"]
[Result "0-1"]
[WhiteElo "2406"]
[BlackElo "2612"]
[TimeControl "180+1"]
[EndTime "8:40:15 PDT"]
[Termination "Susal_De_Silva won on time"]

1. e4 {[%clk 0:03:00.9]} 1... e5 {[%clk 0:02:57.3]} 2. Nf3 {[%clk 0:02:57.9]}
2... d6 {[%clk 0:02:56.8]} 3. d4 {[%clk 0:02:55.5]} 3... exd4 {[%clk 0:02:57.7]}
4. Nxd4 {[%clk 0:02:56]} 4... Nf6 {[%clk 0:02:57.7]} 5. Nc3 {[%clk 0:02:54.9]}
5... Be7 {[%clk 0:02:57.6]} 6. Be2 {[%clk 0:02:53.3]} 6... O-O {[%clk
0:02:57.7]} 7. O-O {[%clk 0:02:51.9]} 7... Re8 {[%clk 0:02:58.6]} 8. Re1 {[%clk
0:02:47]} 8... c6 {[%clk 0:02:55.3]} 9. Be3 {[%clk 0:02:43.7]} 9... Bf8 {[%clk
0:02:53.9]} 10. Bd3 {[%clk 0:02:29.4]} 10... Nbd7 {[%clk 0:02:51.3]} 11. f4
{[%clk 0:02:28]} 11... Nc5 {[%clk 0:02:50.3]} 12. Qf3 {[%clk 0:02:19]} 12... Bg4
{[%clk 0:02:28.7]} 13. Qg3 {[%clk 0:02:14.9]} 13... Bd7 {[%clk 0:02:28.2]} 14.
e5 {[%clk 0:02:09.2]} 14... Nxd3 {[%clk 0:02:25.7]} 15. cxd3 {[%clk 0:02:01.6]}
15... Nh5 {[%clk 0:02:20.9]} 16. Qf3 {[%clk 0:01:48.9]} 16... g6 {[%clk
0:02:12.2]} 17. g4 {[%clk 0:01:01.2]} 17... Ng7 {[%clk 0:02:09.1]} 18. Ne4
{[%clk 0:01:01]} 18... dxe5 {[%clk 0:01:52.3]} 19. fxe5 {[%clk 0:01:01.9]} 19...
Rxe5 {[%clk 0:01:51.7]} 20. Bf4 {[%clk 0:00:51.2]} 20... Rd5 {[%clk 0:01:40.3]}
21. Ne2 {[%clk 0:00:42.6]} 21... f5 {[%clk 0:01:36.8]} 22. N4c3 {[%clk
0:00:28.8]} 22... fxg4 {[%clk 0:01:33.5]} 23. Qg3 {[%clk 0:00:17.6]} 23... Nf5
{[%clk 0:01:28.1]} 24. Qxg4 {[%clk 0:00:14.7]} 24... Rxd3 {[%clk 0:01:27.2]} 25.
Qg2 {[%clk 0:00:10.5]} 25... Nh4 {[%clk 0:01:25.6]} 26. Qe4 {[%clk 0:00:09.1]}
26... Nf3+ {[%clk 0:01:24.9]} 27. Kf2 {[%clk 0:00:08.9]} 27... Nxe1 {[%clk
0:01:25.8]} 28. Rxe1 {[%clk 0:00:08.4]} 28... Qh4+ {[%clk 0:01:18.1]} 29. Bg3
{[%clk 0:00:05.9]} 29... Bc5+ {[%clk 0:01:16]} 30. Kg2 {[%clk 0:00:03.9]} 30...
Bh3+ {[%clk 0:01:01.7]} 31. Kh1 {[%clk 0:00:02.5]} 31... Qxe4+ {[%clk
0:00:47.6]} 32. Nxe4 {[%clk 0:00:03.4]} 32... Bb4 {[%clk 0:00:45.5]} 33. Rc1
{[%clk 0:00:01]} 33... Re3 {[%clk 0:00:40.2]} 34. Nf6+ {[%clk 0:00:01.3]} 34...
Kf7 {[%clk 0:00:40]} 35. Nf4 {[%clk 0:00:01.8]} 35... Bf5 {[%clk 0:00:32.6]} 36.
Bh4 {[%clk 0:00:00.9]} 36... Be7 {[%clk 0:00:24.6]} 37. Re1 {[%clk 0:00:00.5]}
37... Rxe1+ {[%clk 0:00:23.4]} 38. Bxe1 {[%clk 0:00:01.4]} 38... Bxf6 {[%clk
0:00:22.3]} 39. Bc3 {[%clk 0:00:02.3]} 39... Bxc3 {[%clk 0:00:20]} 40. bxc3
{[%clk 0:00:03.2]} 40... Re8 {[%clk 0:00:20.2]} 41. Kg1 {[%clk 0:00:04.1]} 41...
Re3 {[%clk 0:00:20.7]} 42. Kf2 {[%clk 0:00:05]} 42... Rxc3 {[%clk 0:00:21.4]}
43. h4 {[%clk 0:00:04.3]} 43... b5 {[%clk 0:00:21.8]} 44. h5 {[%clk 0:00:05.2]}
44... b4 {[%clk 0:00:22.5]} 45. hxg6+ {[%clk 0:00:04.9]} 45... hxg6 {[%clk
0:00:23.4]} 46. Ke2 {[%clk 0:00:05.3]} 46... a5 {[%clk 0:00:23.9]} 47. Kd2
{[%clk 0:00:06.2]} 47... a4 {[%clk 0:00:24.8]} 48. Ne2 {[%clk 0:00:06.7]} 48...
Rc2+ {[%clk 0:00:24.8]} 49. Kd1 {[%clk 0:00:06.5]} 49... Rxa2 {[%clk 0:00:25.7]}
50. Nd4 {[%clk 0:00:06.9]} 50... b3 {[%clk 0:00:25.5]} 51. Kc1 {[%clk
0:00:07.8]} 51... b2+ {[%clk 0:00:24.3]} 0-1

[Event "Early-Titled-Tuesday-Blitz-May-28-2024"]
[Site "Chess.com"]
[Date "2024.05.28"]
[Round "4"]
[White "MITerryble"]
[Black "Sippp"]
[Result "1-0"]
[WhiteElo "3028"]
[BlackElo "2803"]
[TimeControl "180+1"]
[EndTime "8:40:17 PDT"]
[Termination "MITerryble won on time"]

1. c4 {[%clk 0:03:00.9]} 1... c5 {[%clk 0:02:59]} 2. g3 {[%clk 0:03:00.1]} 2...
Nc6 {[%clk 0:02:59.3]} 3. Bg2 {[%clk 0:03:00.4]} 3... g6 {[%clk 0:03:00]} 4. Nc3
{[%clk 0:03:00]} 4... Bg7 {[%clk 0:03:00.3]} 5. d3 {[%clk 0:03:00.7]} 5... d6
{[%clk 0:03:00.6]} 6. Nf3 {[%clk 0:02:56.6]} 6... Bf5 {[%clk 0:03:00]} 7. Nh4
{[%clk 0:02:53.3]} 7... Bd7 {[%clk 0:02:58.6]} 8. Bd2 {[%clk 0:02:53.1]} 8...
Qc8 {[%clk 0:02:58.2]} 9. h3 {[%clk 0:02:53.4]} 9... Nf6 {[%clk 0:02:57.5]} 10.
Rb1 {[%clk 0:02:53.3]} 10... O-O {[%clk 0:02:56.3]} 11. a3 {[%clk 0:02:53.6]}
11... Rb8 {[%clk 0:02:18.3]} 12. b4 {[%clk 0:02:52.8]} 12... b6 {[%clk
0:02:18.3]} 13. Nf3 {[%clk 0:02:45]} 13... Nd4 {[%clk 0:02:16.9]} 14. Nxd4
{[%clk 0:02:39.8]} 14... cxd4 {[%clk 0:02:12.1]} 15. Nb5 {[%clk 0:02:40.3]}
15... Bxb5 {[%clk 0:01:52.2]} 16. cxb5 {[%clk 0:02:41.2]} 16... Qf5 {[%clk
0:01:49.9]} 17. Qa4 {[%clk 0:02:35.3]} 17... Nd5 {[%clk 0:01:44.9]} 18. O-O
{[%clk 0:02:13.9]} 18... Rbc8 {[%clk 0:00:58.1]} 19. Rbc1 {[%clk 0:02:10.5]}
19... Nc3 {[%clk 0:00:55]} 20. Bxc3 {[%clk 0:02:09.9]} 20... dxc3 {[%clk
0:00:51.8]} 21. Qxa7 {[%clk 0:02:07.4]} 21... Qxb5 {[%clk 0:00:49.8]} 22. Rc2
{[%clk 0:01:56.9]} 22... e6 {[%clk 0:00:43.2]} 23. Bb7 {[%clk 0:01:24.3]} 23...
Rc7 {[%clk 0:00:38.7]} 24. Qa6 {[%clk 0:01:24.4]} 24... Qd7 {[%clk 0:00:26.3]}
25. Bf3 {[%clk 0:01:23]} 25... Rb8 {[%clk 0:00:26.5]} 26. d4 {[%clk 0:00:59.1]}
26... Ra7 {[%clk 0:00:24.3]} 27. Qd3 {[%clk 0:00:52.6]} 27... Rxa3 {[%clk
0:00:22.9]} 28. Rxc3 {[%clk 0:00:53.1]} 28... Rxc3 {[%clk 0:00:23.8]} 29. Qxc3
{[%clk 0:00:54]} 29... e5 {[%clk 0:00:24]} 30. Kg2 {[%clk 0:00:46]} 30... exd4
{[%clk 0:00:23.2]} 31. Qc6 {[%clk 0:00:42.1]} 31... Qe7 {[%clk 0:00:10.5]} 32.
b5 {[%clk 0:00:33.8]} 32... h5 {[%clk 0:00:09.2]} 33. h4 {[%clk 0:00:32.8]}
33... Bf6 {[%clk 0:00:09.2]} 34. Rc1 {[%clk 0:00:33]} 34... Kg7 {[%clk
0:00:09.5]} 35. Rc2 {[%clk 0:00:29.4]} 35... d5 {[%clk 0:00:08.4]} 36. Qxd5
{[%clk 0:00:22.7]} 36... Rd8 {[%clk 0:00:07.5]} 37. Qb3 {[%clk 0:00:23.3]} 37...
Rd6 {[%clk 0:00:07.4]} 38. Rc6 {[%clk 0:00:23.9]} 38... Rxc6 {[%clk 0:00:06.5]}
39. bxc6 {[%clk 0:00:24.8]} 39... Qc7 {[%clk 0:00:06.7]} 40. Qd5 {[%clk
0:00:24.8]} 40... Be5 {[%clk 0:00:06.9]} 41. Be4 {[%clk 0:00:25.2]} 41... Qd6
{[%clk 0:00:06.7]} 42. Qc4 {[%clk 0:00:24.7]} 42... Qc7 {[%clk 0:00:06.6]} 43.
Bd5 {[%clk 0:00:24]} 43... Bf6 {[%clk 0:00:06.8]} 44. Bxf7 {[%clk 0:00:22.9]}
44... b5 {[%clk 0:00:03.3]} 45. Qd5 {[%clk 0:00:18.8]} 45... Qe5 {[%clk
0:00:01.6]} 46. Qd7 {[%clk 0:00:15.1]} 46... Qe7 {[%clk 0:00:01.9]} 47. Qxe7
{[%clk 0:00:15]} 47... Bxe7 {[%clk 0:00:02.8]} 48. c7 {[%clk 0:00:15.6]} 1-0

[Event "Early-Titled-Tuesday-Blitz-May-28-2024"]
[Site "Chess.com"]
[Date "2024.05.28"]
[Round "4"]
[White "Fore_Man"]
[Black "Glidzhian_Gor"]
[Result "0-1"]
[WhiteElo "2250"]
[BlackElo "2545"]
[TimeControl "180+1"]
[EndTime "8:40:17 PDT"]
[Termination "Glidzhian_Gor won on time"]

1. Nf3 {[%clk 0:03:00.9]} 1... Nf6 {[%clk 0:02:59.9]} 2. c4 {[%clk 0:03:00.9]}
2... g6 {[%clk 0:02:59.8]} 3. b3 {[%clk 0:03:01.2]} 3... d6 {[%clk 0:03:00.6]}
4. Bb2 {[%clk 0:03:01.5]} 4... Bg7 {[%clk 0:03:01.2]} 5. e3 {[%clk 0:03:01.6]}
5... O-O {[%clk 0:03:01.8]} 6. d4 {[%clk 0:03:02]} 6... Nc6 {[%clk 0:03:02.4]}
7. Be2 {[%clk 0:03:02.5]} 7... e5 {[%clk 0:03:02.5]} 8. O-O {[%clk 0:03:00]}
8... e4 {[%clk 0:03:01.7]} 9. Nfd2 {[%clk 0:03:00.4]} 9... h5 {[%clk 0:03:01.7]}
10. Nc3 {[%clk 0:03:00.1]} 10... Bf5 {[%clk 0:03:01.7]} 11. a3 {[%clk 0:02:58]}
11... h4 {[%clk 0:03:01.5]} 12. h3 {[%clk 0:02:57.3]} 12... Qd7 {[%clk
0:03:01.3]} 13. Re1 {[%clk 0:02:50.1]} 13... Rae8 {[%clk 0:02:52.7]} 14. b4
{[%clk 0:02:45.8]} 14... Nh7 {[%clk 0:02:52.5]} 15. b5 {[%clk 0:02:37.4]} 15...
Nxd4 {[%clk 0:02:46.4]} 16. exd4 {[%clk 0:02:33.8]} 16... e3 {[%clk 0:02:46.7]}
17. fxe3 {[%clk 0:02:22.2]} 17... Rxe3 {[%clk 0:02:47.6]} 18. Nf3 {[%clk
0:02:16.5]} 18... Bxh3 {[%clk 0:02:45.1]} 19. Bf1 {[%clk 0:02:15.5]} 19... Rxe1
{[%clk 0:02:40.3]} 20. Qxe1 {[%clk 0:02:16.4]} 20... Bg4 {[%clk 0:02:40.9]} 21.
Qxh4 {[%clk 0:02:16.7]} 21... Bxf3 {[%clk 0:02:41]} 22. gxf3 {[%clk 0:02:16.9]}
22... Re8 {[%clk 0:02:32.1]} 23. Ne4 {[%clk 0:02:12]} 23... d5 {[%clk
0:02:21.9]} 24. Nc5 {[%clk 0:01:23.7]} 24... Qf5 {[%clk 0:02:04.9]} 25. Qg4
{[%clk 0:01:00]} 25... Qc2 {[%clk 0:01:22.6]} 26. Qg2 {[%clk 0:00:59.3]} 26...
Qxg2+ {[%clk 0:01:20.1]} 27. Kxg2 {[%clk 0:00:59.7]} 27... b6 {[%clk 0:01:20.4]}
28. Nd7 {[%clk 0:00:50.9]} 28... dxc4 {[%clk 0:01:07.5]} 29. Bxc4 {[%clk
0:00:50.9]} 29... Rd8 {[%clk 0:01:08.2]} 30. Ne5 {[%clk 0:00:51.5]} 30... Bxe5
{[%clk 0:01:08.9]} 31. dxe5 {[%clk 0:00:43]} 31... Rd2+ {[%clk 0:01:09.8]} 32.
Kg3 {[%clk 0:00:40.7]} 32... Rxb2 {[%clk 0:01:05.1]} 33. Rd1 {[%clk 0:00:40.9]}
33... Rc2 {[%clk 0:00:56.1]} 34. Rd8+ {[%clk 0:00:39.8]} 34... Kg7 {[%clk
0:00:56]} 35. Bd5 {[%clk 0:00:39]} 35... Nf8 {[%clk 0:00:43.8]} 36. Ra8 {[%clk
0:00:30.7]} 36... Rc5 {[%clk 0:00:42.5]} 37. Bc6 {[%clk 0:00:29.5]} 37... Rxe5
{[%clk 0:00:37.7]} 38. Rxa7 {[%clk 0:00:29.9]} 38... Ne6 {[%clk 0:00:38.4]} 39.
a4 {[%clk 0:00:24.4]} 39... Re3 {[%clk 0:00:37.5]} 40. a5 {[%clk 0:00:24.6]}
40... bxa5 {[%clk 0:00:37.2]} 41. Rxa5 {[%clk 0:00:24.3]} 41... Nd4 {[%clk
0:00:37.4]} 42. Ra7 {[%clk 0:00:23.5]} 42... Ne6 {[%clk 0:00:32.7]} 43. Ra8
{[%clk 0:00:20.3]} 43... Rc3 {[%clk 0:00:31.1]} 44. Rc8 {[%clk 0:00:19]} 44...
Kf6 {[%clk 0:00:28.6]} 45. Bd7 {[%clk 0:00:19]} 45... Nd4 {[%clk 0:00:26.2]} 46.
b6 {[%clk 0:00:16.7]} 46... Rxf3+ {[%clk 0:00:25.5]} 47. Kg4 {[%clk 0:00:15.5]}
47... cxb6 {[%clk 0:00:25.5]} 48. Rc4 {[%clk 0:00:13.6]} 48... Rd3 {[%clk
0:00:25.8]} 49. Rb4 {[%clk 0:00:12.6]} 49... b5 {[%clk 0:00:21.6]} 50. Kf4
{[%clk 0:00:10.2]} 50... Nc2 {[%clk 0:00:18.1]} 0-1

[Event "Early-Titled-Tuesday-Blitz-May-28-2024"]
[Site "Chess.com"]
[Date "2024.05.28"]
[Round "4"]
[White "mangochessgo"]
[Black "Alex_Sahakyan2006"]
[Result "1-0"]
[WhiteElo "2601"]
[BlackElo "2835"]
[TimeControl "180+1"]
[EndTime "8:40:18 PDT"]
[Termination "mangochessgo won by checkmate"]

1. d4 {[%clk 0:02:56.2]} 1... Nf6 {[%clk 0:02:59.9]} 2. Nf3 {[%clk 0:02:56.5]}
2... d5 {[%clk 0:02:57.3]} 3. Bf4 {[%clk 0:02:57]} 3... c5 {[%clk 0:02:54.1]} 4.
e3 {[%clk 0:02:57.4]} 4... Qb6 {[%clk 0:02:54.4]} 5. Nbd2 {[%clk 0:02:53.1]}
5... Nc6 {[%clk 0:02:50.2]} 6. dxc5 {[%clk 0:02:52.6]} 6... Qxb2 {[%clk
0:02:50.2]} 7. Rb1 {[%clk 0:02:51.6]} 7... Qc3 {[%clk 0:02:50.5]} 8. Bb5 {[%clk
0:02:47]} 8... e6 {[%clk 0:02:47.4]} 9. Ne5 {[%clk 0:02:28.5]} 9... Bd7 {[%clk
0:02:43.5]} 10. Nd3 {[%clk 0:02:17.2]} 10... Ne4 {[%clk 0:02:37.9]} 11. Bxc6
{[%clk 0:01:50.7]} 11... Bxc6 {[%clk 0:02:35]} 12. Be5 {[%clk 0:01:49.6]} 12...
Qa5 {[%clk 0:02:34.4]} 13. f3 {[%clk 0:01:43.7]} 13... Nxc5 {[%clk 0:02:31.5]}
14. O-O {[%clk 0:01:39]} 14... Nxd3 {[%clk 0:02:31.7]} 15. cxd3 {[%clk
0:01:39.1]} 15... f6 {[%clk 0:02:30.1]} 16. Nb3 {[%clk 0:01:35.9]} 16... Qd8
{[%clk 0:02:28]} 17. Bg3 {[%clk 0:01:27.8]} 17... Bd6 {[%clk 0:02:10.8]} 18. Nd4
{[%clk 0:01:20.1]} 18... Bxg3 {[%clk 0:02:10.6]} 19. hxg3 {[%clk 0:01:18.8]}
19... Qd6 {[%clk 0:02:10.2]} 20. g4 {[%clk 0:01:10.9]} 20... O-O {[%clk
0:02:08.7]} 21. Qb3 {[%clk 0:00:52.2]} 21... b6 {[%clk 0:01:59.9]} 22. Rfc1
{[%clk 0:00:52]} 22... Rfc8 {[%clk 0:01:56.8]} 23. Rc3 {[%clk 0:00:44.8]} 23...
Bd7 {[%clk 0:01:46.6]} 24. Rbc1 {[%clk 0:00:44.6]} 24... Rxc3 {[%clk 0:01:43.1]}
25. Rxc3 {[%clk 0:00:44.9]} 25... Kf7 {[%clk 0:01:36.1]} 26. Nb5 {[%clk
0:00:32.8]} 26... Bxb5 {[%clk 0:01:36.1]} 27. Qxb5 {[%clk 0:00:32.6]} 27... Rd8
{[%clk 0:01:23.9]} 28. Kf2 {[%clk 0:00:30.2]} 28... d4 {[%clk 0:01:21.4]} 29.
Rc6 {[%clk 0:00:22.7]} 29... dxe3+ {[%clk 0:01:21.4]} 30. Kxe3 {[%clk
0:00:20.7]} 30... Qd4+ {[%clk 0:01:20.6]} 31. Ke2 {[%clk 0:00:20.4]} 31... Rd5
{[%clk 0:01:08.8]} 32. Rc7+ {[%clk 0:00:19.3]} 32... Kg6 {[%clk 0:01:09.3]} 33.
Qe8+ {[%clk 0:00:19.4]} 33... Kh6 {[%clk 0:01:09.8]} 34. Qf7 {[%clk 0:00:11.1]}
34... Qxd3+ {[%clk 0:01:04.9]} 35. Kf2 {[%clk 0:00:10.4]} 35... Rg5 {[%clk
0:00:55.4]} 36. Qxe6 {[%clk 0:00:06.1]} 36... Qd2+ {[%clk 0:00:48.1]} 37. Kg3
{[%clk 0:00:06]} 37... Re5 {[%clk 0:00:43.2]} 38. Qf7 {[%clk 0:00:03.8]} 38...
Qe1+ {[%clk 0:00:41.6]} 39. Kh3 {[%clk 0:00:03.7]} 39... Qh1+ {[%clk 0:00:40.5]}
40. Kg3 {[%clk 0:00:04.1]} 40... Qe1+ {[%clk 0:00:40.6]} 41. Kh3 {[%clk
0:00:04.5]} 41... Rg5 {[%clk 0:00:39.3]} 42. Rxa7 {[%clk 0:00:02.7]} 42... b5
{[%clk 0:00:35.2]} 43. Re7 {[%clk 0:00:01.8]} 43... Qh1+ {[%clk 0:00:25.4]} 44.
Kg3 {[%clk 0:00:02.7]} 44... Qd1 {[%clk 0:00:23.5]} 45. Re6 {[%clk 0:00:03.1]}
45... Qd4 {[%clk 0:00:19.9]} 46. Kh3 {[%clk 0:00:01.9]} 46... b4 {[%clk
0:00:14.8]} 47. Kg3 {[%clk 0:00:02.1]} 47... Re5 {[%clk 0:00:13.2]} 48. Rxf6+
{[%clk 0:00:01.7]} 48... gxf6 {[%clk 0:00:11.8]} 49. Qxf6# {[%clk 0:00:02.6]}
1-0